bitfinex-derivatives/quotes_BTCF0:USTF0_20250426
["timestamp","ask_amount","ask_price","bid_price","bid_amount"]
[1745645536063,0.0579,94650.0,94648.0,0.0552]
[1745645536261,0.0579,94650.0,94646.0,0.0699]
[1745645536462,0.1159,94649.0,94646.0,0.0699]
[1745645536863,0.1159,94649.0,94647.0,0.0586]
[1745645537055,0.1159,94649.0,94647.0,0.0596]
[1745645537661,0.1159,94649.0,94647.0,0.0586]
[1745645538466,1.30327,94648.0,94647.0,0.001]
[1745645538666,1.523826,94648.0,94629.0,0.06712]
[1745645538964,0.3608,94630.0,94627.0,0.06712]
[1745645539158,0.1149,94629.0,94627.0,0.06712]
[1745645539563,0.2112807,94621.0,94620.0,0.04587376]
[1745645539757,0.775,94621.0,94609.0,0.16009162]
[1745645539963,0.3608,94611.0,94609.0,0.16009162]
[1745645540159,0.5288,94611.0,94609.0,0.16009162]
[1745645540362,0.634496,94611.0,94610.0,0.0335774]
[1745645540569,0.634496,94611.0,94610.0,0.00158553]
[1745645541769,0.634496,94611.0,94610.0,0.04330185]
[1745645542267,0.634496,94611.0,94610.0,0.04830185]
[1745645542865,0.5288,94611.0,94610.0,0.04330185]
[1745645543174,0.3618,94611.0,94610.0,0.16660185]
[1745645543866,0.3608,94611.0,94610.0,0.15260185]
[1745645544067,0.3618,94611.0,94610.0,0.16560185]
[1745645544662,0.3608,94611.0,94610.0,0.15260185]
[1745645544861,0.3618,94611.0,94610.0,0.16560185]
[1745645545770,0.3618,94611.0,94610.0,0.16660185]
[1745645546366,0.3618,94611.0,94610.0,0.05330185]
[1745645546764,0.3608,94611.0,94610.0,0.04030185]
[1745645546965,0.3618,94611.0,94610.0,0.05530185]
[1745645547564,0.3608,94611.0,94610.0,0.04030185]
[1745645547766,0.3618,94611.0,94610.0,0.10940185]
[1745645547969,0.3618,94611.0,94610.0,0.16170185]
[1745645548160,0.3618,94611.0,94610.0,0.16770185]
[1745645548562,0.3618,94611.0,94610.0,0.16170185]
[1745645548867,0.3618,94611.0,94610.0,0.16770185]
[1745645549661,0.3608,94611.0,94610.0,0.15370185]
[1745645549862,0.3618,94611.0,94610.0,0.16770185]
[1745645550479,0.3608,94611.0,94610.0,0.15370185]
[1745645550774,0.3618,94611.0,94610.0,0.16770185]
[1745645551270,0.3608,94611.0,94610.0,0.15370185]
[1745645551481,0.3618,94611.0,94610.0,0.16770185]
[1745645552863,0.3618,94611.0,94610.0,0.16170185]
[1745645553064,0.3608,94611.0,94610.0,0.15370185]
[1745645553374,0.3618,94611.0,94610.0,0.16770185]
[1745645553871,0.3608,94611.0,94610.0,0.15370185]
[1745645554072,0.3618,94611.0,94610.0,0.16770185]
[1745645566492,0.001,94611.0,94610.0,0.16770185]
[1745645566684,0.3618,94611.0,94610.0,0.16770185]
[1745645567474,0.001,94611.0,94610.0,0.16770185]
[1745645567678,0.3618,94611.0,94610.0,0.16770185]
[1745645568483,0.3618,94611.0,94610.0,0.23446185]
[1745645570185,0.4142,94620.0,94610.0,0.40246185]
[1745645570486,0.4142,94620.0,94613.0,0.3608]
[1745645570687,0.3608,94621.0,94614.0,0.1185]
[1745645570887,0.4708,94638.0,94615.0,0.0572]
[1745645571089,0.4708,94638.0,94628.0,0.10005674]
[1745645571282,0.4708,94638.0,94629.0,0.1757]
[1745645573289,0.4838,94638.0,94629.0,0.1767]
[1745645574000,0.4838,94638.0,94629.0,0.1757]
[1745645574178,0.5383,94638.0,94629.0,0.1767]
[1745645574382,0.5383,94638.0,94629.0,0.1777]
[1745645574885,0.5383,94638.0,94629.0,0.1767]
[1745645575091,0.5383,94638.0,94629.0,0.1777]
[1745645575591,0.5273,94638.0,94629.0,0.1767]
[1745645575890,0.5383,94638.0,94629.0,0.1777]
[1745645577492,0.4818,94638.0,94629.0,0.1777]
[1745645578187,0.4252,94638.0,94629.0,0.1777]
[1745645578387,0.4799,94638.0,94629.0,0.1777]
[1745645580487,0.0547,94637.0,94629.0,0.1777]
[1745645580991,0.4735,94636.0,94629.0,0.1777]
[1745645581693,0.3608,94630.0,94629.0,0.1777]
[1745645581890,0.3608,94630.0,94629.0,0.1195]
[1745645582085,0.3608,94630.0,94629.0,0.1205]
[1745645582289,0.3608,94630.0,94629.0,0.1195]
[1745645582487,0.3608,94630.0,94629.0,0.1205]
[1745645583588,0.3698,94630.0,94629.0,0.1205]
[1745645584394,0.3698,94630.0,94629.0,0.1195]
[1745645584593,0.3698,94630.0,94629.0,0.1205]
[1745645591397,0.4142,94636.0,94629.0,0.8421]
[1745645591787,0.0572,94635.0,94629.0,0.8421]
[1745645592187,0.0572,94635.0,94629.0,1.0101]
[1745645592388,0.0572,94635.0,94629.0,1.0091]
[1745645592588,0.0572,94635.0,94629.0,1.0101]
[1745645594596,0.0642,94635.0,94629.0,1.0081]
[1745645594895,0.0642,94635.0,94629.0,1.0091]
[1745645595096,0.0642,94635.0,94629.0,0.2875]
[1745645595304,0.0642,94635.0,94634.0,0.3608]
[1745645596092,0.0642,94635.0,94634.0,0.5288]
[1745645597205,0.0642,94635.0,94634.0,0.3608]
[1745645598402,0.0642,94635.0,94634.0,0.3618]
[1745645601693,0.007,94635.0,94634.0,0.3618]
[1745645602703,0.007,94635.0,94634.0,0.42804]
[1745645604301,0.007,94635.0,94634.0,0.59604]
[1745645607103,0.007,94635.0,94634.0,0.42804]
[1745645608207,0.007,94635.0,94634.0,0.59604]
[1745645610104,0.007,94635.0,94634.0,0.42804]
[1745645611007,0.4726,94649.0,94634.0,0.42804]
[1745645611207,0.4726,94649.0,94648.0,0.3608]
[1745645612411,0.4726,94649.0,94648.0,0.3618]
[1745645613400,0.4766,94649.0,94648.0,0.3618]
[1745645614306,0.4182,94649.0,94648.0,0.3618]
[1745645619211,0.36080838,94649.0,94648.0,0.3618]
[1745645619406,0.0562,94659.0,94648.0,0.3618]
[1745645619607,0.0553,94657.0,94649.0,0.23284836]
[1745645619802,0.0553,94657.0,94650.0,0.0662]
[1745645620008,0.0553,94657.0,94656.0,0.3608]
[1745645621114,0.2233,94657.0,94656.0,0.3608]
[1745645621318,0.2273,94657.0,94656.0,0.3608]
[1745645621611,0.2273,94657.0,94656.0,0.38867191]
[1745645621815,1.471974,94657.0,94648.0,0.001]
[1745645622013,0.5720182,94649.0,94648.0,0.001]
[1745645622312,0.5288,94649.0,94628.0,0.0591]
[1745645622515,0.2112428,94638.0,94635.0,0.0662]
[1745645622723,0.1759,94637.0,94635.0,0.09447876]
[1745645623216,0.3439,94637.0,94635.0,0.02827876]
[1745645623418,0.3439,94637.0,94630.0,0.06564836]
[1745645623717,0.3439,94637.0,94628.0,0.1253]
[1745645624804,0.3439,94637.0,94635.0,0.001]
[1745645625314,0.168,94637.0,94636.0,0.3608]
[1745645625814,0.16271705,94637.0,94636.0,0.3608]
[1745645626015,0.16271705,94637.0,94636.0,0.427]
[1745645626205,0.0565,94647.0,94636.0,0.595]
[1745645626405,0.0565,94647.0,94644.0,0.3608]
[1745645626611,0.0565,94647.0,94645.0,0.0563]
[1745645627012,0.0565,94647.0,94646.0,0.0568]
[1745645627813,0.0565,94647.0,94646.0,0.1166]
[1745645628710,0.0573,94654.0,94646.0,0.1166]
[1745645629008,0.0573,94654.0,94646.0,0.1176]
[1745645629608,0.4142,94658.0,94646.0,0.1176]
[1745645630014,0.0573,94657.0,94646.0,0.1176]
[1745645630713,0.0573,94657.0,94656.0,0.3608]
[1745645631306,0.0573,94657.0,94656.0,0.5338]
[1745645632116,0.0573,94657.0,94656.0,0.5348]
[1745645639220,0.0013,94661.0,94656.0,0.5348]
[1745645639620,0.0602,94660.0,94656.0,0.5348]
[1745645640620,0.0602,94660.0,94656.0,0.173]
[1745645640815,0.0602,94660.0,94657.0,0.3608]
[1745645641219,0.0602,94660.0,94658.0,0.1198]
[1745645642127,0.0013,94661.0,94658.0,0.1198]
[1745645643426,0.0584,94660.0,94658.0,0.1198]
[1745645643617,0.0584,94660.0,94658.0,0.12764781]
[1745645644527,0.0584,94660.0,94658.0,0.12864781]
[1745645644928,0.0584,94660.0,94658.0,0.12764781]
[1745645645222,0.0584,94660.0,94658.0,0.12864781]
[1745645653828,0.118,94659.0,94658.0,0.12864781]
[1745645655023,0.118,94659.0,94658.0,0.12764781]
[1745645655219,0.118,94659.0,94658.0,0.12864781]
[1745645655419,0.0013,94661.0,94658.0,0.12864781]
[1745645656617,0.0013,94661.0,94658.0,0.12764781]
[1745645656824,0.0013,94661.0,94658.0,0.12864781]
[1745645657219,0.0566,94660.0,94658.0,0.12864781]
[1745645660026,0.0566,94660.0,94658.0,0.00884781]
[1745645660328,0.3777399,94659.0,94658.0,0.00884781]
[1745645660728,1.2158499,94659.0,94658.0,0.00884781]
[1745645661125,0.0528046,94649.0,94632.0,0.3608]
[1745645661423,0.5295,94648.0,94633.0,0.06672]
[1745645662224,0.6975,94648.0,94633.0,0.06672]
[1745645662423,0.6975,94648.0,94633.0,0.07480159]
[1745645662819,0.6975,94648.0,94633.0,0.07428159]
[1745645663329,0.6975,94648.0,94633.0,0.08328159]
[1745645664324,0.0564,94647.0,94633.0,0.08328159]
[1745645664626,0.1174,94646.0,94633.0,0.08328159]
[1745645666320,0.1194,94646.0,94633.0,0.08328159]
[1745645667727,0.1194,94646.0,94634.0,0.0616]
[1745645668123,0.1194,94646.0,94635.0,0.0592]
[1745645668327,0.1194,94646.0,94635.0,0.1254]
[1745645668632,0.1174,94646.0,94635.0,0.1254]
[1745645668829,0.001,94646.0,94636.0,0.10004247]
[1745645669026,0.001,94646.0,94637.0,0.0616]
[1745645669222,0.0563,94647.0,94637.0,0.0616]
[1745645669430,0.0563,94645.0,94637.0,0.0616]
[1745645669630,0.0563,94645.0,94638.0,0.0592]
[1745645670828,0.0563,94645.0,94641.0,0.3608]
[1745645671025,0.0563,94645.0,94642.0,0.1757]
[1745645672530,0.0573,94645.0,94642.0,0.1757]
[1745645673734,0.0573,94645.0,94642.0,0.1827]
[1745645677731,0.001,94645.0,94642.0,0.1827]
[1745645678231,0.001,94645.0,94644.0,0.3608]
[1745645679234,0.001,94645.0,94644.0,0.5288]
[1745645680632,0.001,94645.0,94644.0,0.5298]
[1745645681634,0.4142,94648.0,94644.0,0.5298]
[1745645681837,0.4142,94648.0,94645.0,0.118]
[1745645682133,0.4142,94648.0,94645.0,0.286]
[1745645683633,0.059,94660.0,94645.0,0.286]
[1745645683838,0.059,94660.0,94657.0,0.3608]
[1745645684030,0.059,94660.0,94658.0,0.1785]
[1745645684231,0.059,94660.0,94658.0,0.1201]
[1745645684534,0.059,94660.0,94649.0,0.0662]
[1745645684732,0.122,94659.0,94651.0,0.0586]
[1745645684930,0.122,94659.0,94657.0,0.001]
[1745645685134,0.0591,94658.0,94657.0,0.001]
[1745645685530,0.1155,94658.0,94651.0,0.0586]
[1745645686130,0.2835,94658.0,94651.0,0.0586]
[1745645687133,0.2835,94658.0,94657.0,0.001]
[1745645687539,0.6003422,94658.0,94651.0,0.0586]
[1745645687837,0.2112115,94652.0,94645.0,0.0662]
[1745645688035,0.0591,94651.0,94645.0,0.0662]
[1745645688231,0.3267147,94651.0,94645.0,0.0662]
[1745645688933,0.3267147,94651.0,94640.0,0.0662]
[1745645689239,0.3608,94646.0,94640.0,0.0662]
[1745645689536,0.1757,94645.0,94640.0,0.0662]
[1745645690448,0.1757,94645.0,94640.0,0.007]
[1745645691041,0.1767,94645.0,94640.0,0.007]
[1745645691938,0.1767,94645.0,94638.0,0.0662]
[1745645692241,0.5375,94645.0,94640.0,0.008]
[1745645692638,0.5375,94645.0,94641.0,0.0609]
[1745645694846,0.5375,94645.0,94641.0,0.0679]
[1745645700550,0.1767,94645.0,94641.0,0.0679]
[1745645700753,0.5375,94645.0,94641.0,0.0679]
[1745645701050,0.1767,94645.0,94641.0,0.0679]
[1745645701254,0.5375,94645.0,94641.0,0.0679]
[1745645702752,0.4807,94645.0,94641.0,0.0679]
[1745645704646,0.4807,94645.0,94642.0,0.0586]
[1745645705141,0.4807,94645.0,94643.0,0.0615]
[1745645705549,0.4214,94645.0,94644.0,0.0586]
[1745645706653,0.3618,94645.0,94644.0,0.0596]
[1745645707045,0.001,94645.0,94644.0,0.0596]
[1745645716259,0.775,94657.0,94644.0,0.48603386]
[1745645717156,0.775,94657.0,94644.0,0.65403386]
[1745645717552,0.0569,94656.0,94644.0,0.65403386]
[1745645719059,0.0569,94656.0,94645.0,0.3608]
[1745645719458,0.0569,94656.0,94646.0,0.0615]
[1745645719853,0.0569,94656.0,94647.0,0.0579]
[1745645720259,0.0569,94656.0,94648.0,0.0592]
[1745645720857,0.0569,94656.0,94649.0,0.0615]
[1745645721249,0.0569,94656.0,94650.0,0.0579]
[1745645723253,0.0569,94656.0,94650.0,0.0589]
[1745645728154,0.0611,94655.0,94650.0,0.0589]
[1745645728560,0.0619,94654.0,94651.0,0.0592]
[1745645729054,0.0619,94654.0,94652.0,0.0599]
[1745645729457,0.0619,94654.0,94653.0,0.0592]
[1745645730860,0.0619,94654.0,94653.0,0.0602]
[1745645737468,0.1224,94654.0,94653.0,0.0602]
[1745645737666,0.1224,94654.0,94653.0,0.001]
[1745645738066,0.211217,94650.0,94645.0,0.06548]
[1745645738267,0.3608,94646.0,94634.0,0.17111386]
[1745645738561,0.177,94645.0,94641.0,0.06548]
[1745645740161,0.178,94645.0,94641.0,0.06548]
[1745645741363,0.178,94645.0,94642.0,0.0627]
[1745645743365,0.178,94645.0,94643.0,0.06552]
[1745645743856,0.178,94645.0,94644.0,0.0597]
[1745645744265,0.178,94645.0,94644.0,0.118]
[1745645744464,0.001,94645.0,94644.0,0.118]
[1745645746366,0.1864,94656.0,94644.0,0.118]
[1745645746665,0.001,94645.0,94644.0,0.119]
[1745645747469,0.1864,94656.0,94644.0,0.118]
[1745645747664,0.1874,94656.0,94644.0,0.119]
[1745645748370,0.001,94645.0,94644.0,0.119]
[1745645749861,0.1864,94656.0,94644.0,0.119]
[1745645750266,0.1874,94656.0,94644.0,0.119]
[1745645750661,0.1864,94656.0,94644.0,0.118]
[1745645750861,0.001,94645.0,94644.0,0.119]
[1745645751068,0.1864,94656.0,94644.0,0.287]
[1745645751372,0.1874,94656.0,94644.0,0.287]
[1745645752261,0.1874,94656.0,94644.0,0.119]
[1745645752866,0.1864,94656.0,94644.0,0.119]
[1745645753974,0.1864,94656.0,94645.0,0.06552]
[1745645755973,0.1864,94656.0,94645.0,0.06652]
[1745645758074,0.1864,94656.0,94646.0,0.06563386]
[1745645758477,0.1864,94656.0,94647.0,0.1228]
[1745645760173,0.1864,94656.0,94647.0,0.1238]
[1745645764481,0.3608,94652.0,94647.0,0.1238]
[1745645764665,0.1276,94651.0,94647.0,0.1238]
[1745645765566,0.0633,94651.0,94647.0,0.1238]
[1745645765966,0.0633,94651.0,94647.0,0.1228]
[1745645766168,0.0633,94651.0,94647.0,0.2918]
[1745645766366,0.0013,94661.0,94650.0,0.3608]
[1745645766566,0.0611,94660.0,94651.0,0.25656772]
[1745645766766,0.0611,94660.0,94652.0,0.0637]
[1745645767177,0.0611,94660.0,94653.0,0.1253]
[1745645767765,0.0013,94661.0,94653.0,0.1253]
[1745645768165,0.0013,94661.0,94653.0,0.2933]
[1745645768372,0.31995296,94664.0,94653.0,0.2933]
[1745645768565,0.31995296,94664.0,94654.0,0.0528942]
[1745645768875,0.31995296,94664.0,94655.0,0.0528942]
[1745645769083,0.31995296,94664.0,94656.0,0.1221]
[1745645770072,0.31995296,94664.0,94656.0,0.2901]
[1745645770866,0.31995296,94664.0,94656.0,0.2911]
[1745645770867,0.1852,94663.0,94656.0,0.2911]
[1745645771273,0.1852,94663.0,94657.0,0.06504]
[1745645771675,0.1852,94663.0,94658.0,0.0605]
[1745645773275,0.1852,94663.0,94658.0,0.0615]
[1745645774480,0.1852,94663.0,94659.0,0.0639]
[1745645774984,0.1852,94663.0,94660.0,0.0604]
[1745645775771,0.1237,94663.0,94661.0,0.0639]
[1745645776175,0.1237,94663.0,94662.0,0.0604]
[1745645778779,0.1237,94663.0,94662.0,0.0614]
[1745645787581,0.061,94663.0,94662.0,0.0614]
[1745645787978,0.0638,94666.0,94662.0,0.0614]
[1745645788180,0.0638,94666.0,94663.0,0.0603]
[1745645788587,0.1205,94667.0,94664.0,0.0634]
[1745645788786,0.0609,94667.0,94665.0,0.0603]
[1745645789179,0.05773003,94667.0,94666.0,0.0592]
[1745645789375,0.33649692,94670.0,94666.0,0.0592]
[1745645789584,0.0598,94679.0,94667.0,0.0631]
[1745645789783,0.0598,94679.0,94669.0,0.06563386]
[1745645790082,0.0586,94678.0,94670.0,0.0631]
[1745645790275,0.0586,94678.0,94670.0,0.1223]
[1745645790479,0.0598,94677.0,94670.0,0.1223]
[1745645791082,0.0586,94676.0,94670.0,0.1223]
[1745645791281,0.4142,94692.0,94670.0,0.1223]
[1745645791480,0.33577,94681.0,94671.0,0.12843386]
[1745645791687,0.1184,94680.0,94672.0,0.06548]
[1745645791877,0.1184,94680.0,94672.0,0.12468]
[1745645792078,0.1184,94680.0,94673.0,0.0587]
[1745645792390,0.33131,94681.0,94673.0,0.0587]
[1745645792598,0.33131,94681.0,94674.0,0.059]
[1745645793586,0.059,94680.0,94674.0,0.059]
[1745645793787,0.059,94680.0,94674.0,0.06]
[1745645793990,0.0614,94690.0,94679.0,0.3608]
[1745645794290,0.0614,94690.0,94680.0,0.30906772]
[1745645794985,0.0614,94690.0,94688.0,0.3608]
[1745645795187,0.0614,94690.0,94689.0,0.059]
[1745645795585,0.1222,94690.0,94689.0,0.059]
[1745645796181,0.2902,94690.0,94689.0,0.059]
[1745645796489,0.2902,94690.0,94689.0,0.06]
[1745645797187,0.3489,94690.0,94689.0,0.06]
[1745645797684,0.3489,94690.0,94689.0,0.07977426]
[1745645797884,0.3489,94690.0,94689.0,0.08772359]
[1745645799777,0.2902,94690.0,94689.0,0.08772359]
[1745645800091,0.1222,94690.0,94689.0,0.21072359]
[1745645800686,0.07131001,94700.0,94689.0,0.21072359]
[1745645800890,0.05956001,94699.0,94698.0,0.3608]
[1745645802687,0.05956001,94699.0,94698.0,0.3618]
[1745645803191,0.05986,94703.0,94698.0,0.3618]
[1745645803398,0.05986,94703.0,94699.0,0.1216]
[1745645803688,0.05986,94703.0,94699.0,0.1816]
[1745645804092,0.0603,94702.0,94699.0,0.1816]
[1745645805587,0.0603,94702.0,94699.0,0.1826]
[1745645806606,0.0626,94718.0,94699.0,0.1826]
[1745645806798,0.0597,94717.0,94699.0,0.1826]
[1745645807792,0.0597,94717.0,94700.0,0.06544]
[1745645808189,0.2277,94717.0,94700.0,0.06544]
[1745645808495,0.0605,94716.0,94700.0,0.06544]
[1745645808993,0.0631,94715.0,94700.0,0.06544]
[1745645809391,0.0605,94714.0,94700.0,0.06644]
[1745645809896,0.0631,94713.0,94701.0,0.062]
[1745645810392,0.0613,94712.0,94702.0,0.0582]
[1745645810997,0.0565,94711.0,94703.0,0.0606]
[1745645811194,0.2245,94711.0,94703.0,0.0606]
[1745645811394,0.0613,94710.0,94703.0,0.0606]
[1745645811798,0.1165,94709.0,94703.0,0.0606]
[1745645812499,0.1165,94709.0,94703.0,0.0616]
[1745645812892,0.1165,94709.0,94704.0,0.0582]
[1745645813097,0.2845,94709.0,94704.0,0.0582]
[1745645813298,0.2845,94709.0,94705.0,0.0606]
[1745645813787,0.2845,94709.0,94706.0,0.12294]
[1745645814194,0.2845,94709.0,94707.0,0.0608]
[1745645814599,0.2845,94709.0,94708.0,0.0575]
[1745645814794,0.2245,94709.0,94708.0,0.4183]
[1745645814999,0.168,94709.0,94708.0,0.4183]
[1745645815298,0.168,94709.0,94708.0,0.479]
[1745645815890,0.168,94709.0,94708.0,0.54544]
[1745645818189,0.1207,94717.0,94708.0,0.54544]
[1745645818395,0.1207,94717.0,94709.0,0.0592]
[1745645818686,0.0586,94717.0,94709.0,0.0592]
[1745645818888,0.0013,94721.0,94710.0,0.0621]
[1745645819087,0.0587,94720.0,94710.0,0.0621]
[1745645819293,0.1178,94720.0,94711.0,0.0592]
[1745645819693,0.1178,94720.0,94712.0,0.0592]
[1745645820089,0.2858,94720.0,94713.0,0.062]
[1745645820497,0.2858,94720.0,94714.0,0.0592]
[1745645820894,0.2858,94720.0,94715.0,0.062]
[1745645821293,0.2858,94720.0,94716.0,0.0592]
[1745645821690,0.2858,94720.0,94717.0,0.062]
[1745645822192,0.2858,94720.0,94718.0,0.0592]
[1745645822698,0.2858,94720.0,94719.0,0.0625]
[1745645823598,0.2858,94720.0,94717.0,0.001]
[1745645823901,0.2858,94720.0,94717.0,0.06616]
[1745645824500,0.2858,94720.0,94718.0,0.001]
[1745645824701,0.2858,94720.0,94718.0,0.0589]
[1745645825092,0.2858,94720.0,94718.0,0.0579]
[1745645825803,0.2858,94720.0,94719.0,0.0583]
[1745645826305,0.2267,94720.0,94719.0,0.0583]
[1745645826496,0.168,94720.0,94719.0,0.1164]
[1745645827001,0.2271,94720.0,94719.0,0.1164]
[1745645827400,0.168,94720.0,94719.0,0.1164]
[1745645827602,0.168,94720.0,94719.0,0.1174]
[1745645831301,0.168,94720.0,94719.0,0.001]
[1745645831493,0.4987599,94720.0,94719.0,0.001]
[1745645831695,1.585346,94720.0,94698.0,0.001584]
[1745645831903,0.3608,94699.0,94698.0,0.001584]
[1745645832099,0.6344,94699.0,94698.0,0.001584]
[1745645832709,0.5288,94699.0,94698.0,0.001584]
[1745645832898,0.6498,94699.0,94698.0,0.006584]
[1745645833702,0.6498,94699.0,94698.0,0.019584]
[1745645834305,0.289,94699.0,94698.0,0.023584]
[1745645834495,0.6498,94699.0,94698.0,0.023584]
[1745645837808,0.8609067,94699.0,94698.0,0.023584]
[1745645838000,0.6498,94699.0,94689.0,0.06516]
[1745645838199,1.2751077,94699.0,94690.0,0.12516]
[1745645838404,0.3608,94691.0,94690.0,0.12516]
[1745645839205,0.5288,94691.0,94690.0,0.12516]
[1745645839400,0.5288,94691.0,94690.0,0.13116]
[1745645840203,0.5288,94691.0,94690.0,0.15116]
[1745645840998,0.5288,94691.0,94690.0,0.15016]
[1745645842509,0.5288,94691.0,94690.0,0.085]
[1745645843297,0.168,94691.0,94690.0,0.085]
[1745645843498,0.5288,94691.0,94690.0,0.085]
[1745645845600,0.5288,94691.0,94690.0,0.025]
[1745645845800,0.5288,94691.0,94690.0,0.0843]
[1745645848100,0.5288,94691.0,94683.0,0.06596]
[1745645848308,0.177,94690.0,94683.0,0.07379535]
[1745645848502,0.177,94690.0,94683.0,0.06979535]
[1745645849104,0.345,94690.0,94683.0,0.08579535]
[1745645849407,0.345,94690.0,94683.0,0.07279535]
[1745645849610,0.345,94690.0,94684.0,0.06596]
[1745645850816,0.345,94690.0,94684.0,0.07096]
[1745645851115,0.346,94690.0,94684.0,0.07096]
[1745645851409,0.346,94690.0,94685.0,0.0593]
[1745645851622,0.2111326,94688.0,94685.0,0.0593]
[1745645851813,0.1169,94687.0,94685.0,0.0593]
[1745645852114,0.2849,94687.0,94685.0,0.0593]
[1745645853114,0.2849,94687.0,94684.0,0.07096]
[1745645853614,0.2849,94687.0,94685.0,0.0588]
[1745645853915,0.2849,94687.0,94685.0,0.0628]
[1745645854118,0.2859,94687.0,94685.0,0.0408]
[1745645854414,0.2859,94687.0,94683.0,0.0098375]
[1745645854614,0.2859,94687.0,94684.0,0.005]
[1745645854814,0.2859,94687.0,94684.0,0.002]
[1745645855009,0.2859,94687.0,94685.0,0.004]
[1745645855313,0.2859,94687.0,94677.0,0.06558761]
[1745645855513,0.3608,94682.0,94677.0,0.06558761]
[1745645855814,0.1382,94681.0,94672.0,0.13154761]
[1745645856014,0.1382,94681.0,94673.0,0.0577]
[1745645856603,0.1382,94681.0,94674.0,0.0605]
[1745645857208,0.3062,94681.0,94674.0,0.0605]
[1745645858310,0.3062,94681.0,94674.0,0.0635]
[1745645858509,0.3082,94681.0,94674.0,0.0635]
[1745645858911,0.3082,94681.0,94674.0,0.07124703]
[1745645862513,0.3082,94681.0,94675.0,0.0575]
[1745645862915,0.3082,94681.0,94676.0,0.0572]
[1745645863306,0.3082,94681.0,94677.0,0.0575]
[1745645863713,0.3082,94681.0,94678.0,0.0572]
[1745645864218,0.3082,94681.0,94679.0,0.0575]
[1745645864718,0.3082,94681.0,94680.0,0.0572]
[1745645866713,0.668,94681.0,94680.0,0.0592]
[1745645871016,0.3072,94681.0,94680.0,0.0592]
[1745645871416,0.668,94681.0,94680.0,0.0592]
[1745645874143,0.3072,94681.0,94680.0,0.0592]
[1745645874323,0.668,94681.0,94680.0,0.0592]
[1745645881222,0.2111837,94665.0,94643.0,0.3608]
[1745645881419,0.7216,94661.0,94653.0,0.0597]
[1745645881927,0.7216,94661.0,94654.0,0.0616]
[1745645882120,0.8896,94661.0,94654.0,0.0616]
[1745645882325,0.8896,94661.0,94654.0,0.07953518]
[1745645883233,0.8896,94661.0,94654.0,0.08153518]
[1745645883733,0.8896,94661.0,94654.0,0.07953518]
[1745645884030,0.8916,94661.0,94654.0,0.08153518]
[1745645884334,0.8916,94661.0,94654.0,0.07953518]
[1745645884534,0.8916,94661.0,94654.0,0.08053518]
[1745645888628,0.17,94661.0,94654.0,0.08053518]
[1745645888833,0.3608,94655.0,94654.0,0.08053518]
[1745645889141,0.5288,94655.0,94654.0,0.08053518]
[1745645889923,0.5288,94655.0,94654.0,0.07953518]
[1745645890135,0.5288,94655.0,94654.0,0.08053518]
[1745645890337,0.5288,94655.0,94654.0,0.01893518]
[1745645890338,0.7400048,94655.0,94654.0,0.01893518]
[1745645890536,0.7420048,94655.0,94654.0,0.01893518]
[1745645891727,0.2112091,94654.0,94640.0,0.06558761]
[1745645891935,0.3608,94641.0,94640.0,0.07368877]
[1745645892230,0.5288,94641.0,94640.0,0.00810116]
[1745645892425,0.5288,94641.0,94639.0,0.03754998]
[1745645892631,0.058,94640.0,94639.0,0.03754998]
[1745645893028,0.5288,94641.0,94639.0,0.05488631]
[1745645893228,0.3618,94641.0,94640.0,0.004]
[1745645893627,0.3628,94641.0,94639.0,0.01733633]
[1745645893828,0.001,94640.0,94639.0,0.005]
[1745645894231,0.3618,94640.0,94639.0,0.005]
[1745645894538,0.3618,94640.0,94639.0,0.02304022]
[1745645894931,0.4233,94640.0,94639.0,0.02304022]
[1745645895127,0.2305,94640.0,94639.0,0.02304022]
[1745645895333,0.5903,94640.0,94639.0,0.13854022]
[1745645895534,0.5903,94640.0,94639.0,0.14664211]
[1745645895937,0.5913,94640.0,94639.0,0.15064211]
[1745645896138,0.5933,94640.0,94639.0,0.15064211]
[1745645896650,0.5933,94640.0,94639.0,0.03014211]
[1745645897835,0.5933,94640.0,94639.0,0.14914211]
[1745645901141,0.5933,94640.0,94639.0,0.09084211]
[1745645901436,0.5933,94640.0,94639.0,0.03014211]
[1745645901640,0.5933,94640.0,94630.0,0.06558761]
[1745645901833,0.3608,94631.0,94630.0,0.06558761]
[1745645902034,0.3608,94631.0,94630.0,0.03250946]
[1745645902236,0.3608,94631.0,94629.0,0.06528]
[1745645902539,0.184,94630.0,94629.0,0.06528]
[1745645903243,0.184,94630.0,94620.0,0.13117522]
[1745645903449,0.184,94630.0,94621.0,0.06528]
[1745645903634,0.187,94630.0,94629.0,0.006]
[1745645903942,0.187,94630.0,94629.0,0.03744233]
[1745645906837,0.5478,94630.0,94629.0,0.03744233]
[1745645908839,0.187,94630.0,94629.0,0.03744233]
[1745645909043,0.5478,94630.0,94629.0,0.03744233]
[1745645911043,0.7158,94630.0,94629.0,0.03744233]
[1745645912046,0.7138,94630.0,94629.0,0.03744233]
[1745645912344,0.7148,94630.0,94629.0,0.03144233]
[1745645912548,0.7158,94630.0,94629.0,0.004]
[1745645913039,0.7148,94630.0,94629.0,0.002]
[1745645913549,0.7138,94630.0,94629.0,0.002]
[1745645913753,0.7158,94630.0,94629.0,0.002]
[1745645914145,0.7148,94630.0,94629.0,0.002]
[1745645914343,0.7148,94630.0,94629.0,0.03382652]